bitfinex-derivatives/quotes_BNBF0:USTF0_20250603
["timestamp","ask_amount","ask_price","bid_price","bid_amount"]
[1748993981534,1.01852971,660.9,660.32,0.30288345]
[1748993981735,1.01852971,660.89,660.32,0.30288345]
[1748993981933,1.01852971,660.88,660.32,0.30288345]
[1748993982234,1.13017906,660.92,660.32,0.30288345]
[1748993982235,1.01852971,660.87,660.32,0.30288345]
[1748993982534,1.01852971,660.86,660.32,0.30288345]
[1748993982738,1.01852971,660.85,660.32,0.30288345]
[1748993982939,1.01852971,660.84,660.32,0.30288345]
[1748993983235,1.01852971,660.83,660.32,0.30288345]
[1748993983438,1.01852971,660.82,660.32,0.30288345]
[1748993983638,1.01852971,660.81,660.32,0.30288345]
[1748993983834,1.01852971,660.8,660.32,0.30288345]
[1748993984035,1.01852971,660.79,660.32,0.30288345]
[1748993984237,1.01852971,660.78,660.32,0.30288345]
[1748993984439,1.01862633,660.77,660.32,0.30288345]
[1748993984641,1.01862633,660.76,660.32,0.30288345]
[1748993984939,1.01862633,660.75,660.32,0.30288345]
[1748993985141,1.01862633,660.74,660.32,0.30288345]
[1748993985341,3.75295845,661.97,660.32,0.30288345]
[1748993985342,1.01862633,660.73,660.32,0.30288345]
[1748993985536,1.13038673,660.93,660.32,0.30288345]
[1748993985537,1.01862633,660.72,660.32,0.30288345]
[1748993985741,1.01862633,660.71,660.32,0.30288345]
[1748993985942,1.01862633,660.7,660.32,0.30288345]
[1748993986138,1.01862633,660.69,660.32,0.30288345]
[1748993986339,1.01862633,660.68,660.32,0.30288345]
[1748993986539,1.01862633,660.67,660.32,0.30288345]
[1748993986742,1.01862633,660.66,660.32,0.30288345]
[1748993986943,1.01862633,660.65,660.32,0.30288345]
[1748993987139,1.01862633,660.64,660.32,0.30288345]
[1748993987339,1.01862633,660.63,660.32,0.30288345]
[1748993987545,1.01862633,660.62,660.32,0.30288345]
[1748993987745,1.01862633,660.61,660.32,0.30288345]
[1748993987947,1.13038673,660.93,660.32,0.30288345]
[1748993988240,1.01865723,660.92,660.32,0.30288345]
[1748993988543,1.01865971,660.91,660.32,0.30288345]
[1748993988749,1.01865971,660.9,660.32,0.30288345]
[1748993988941,1.01865971,660.89,660.32,0.30288345]
[1748993989148,1.01865971,660.88,660.32,0.30288345]
[1748993989344,1.01865971,660.87,660.32,0.30288345]
[1748993989543,1.13038188,660.92,660.32,0.30288345]
[1748993989544,1.01865971,660.86,660.32,0.30288345]
[1748993989743,1.01865971,660.85,660.32,0.30288345]
[1748993989944,1.01865971,660.84,660.32,0.30288345]
[1748993990144,1.01865971,660.83,660.32,0.30288345]
[1748993990341,1.01865971,660.82,660.32,0.30288345]
[1748993990546,1.01865971,660.81,660.32,0.30288345]
[1748993990747,1.01865971,660.8,660.32,0.30288345]
[1748993991047,1.01865971,660.79,660.32,0.30288345]
[1748993991246,1.01865971,660.78,660.32,0.30288345]
[1748993991445,1.01865971,660.77,660.32,0.30288345]
[1748993991645,1.01865971,660.76,660.32,0.30288345]
[1748993991845,1.01865971,660.75,660.32,0.30288345]
[1748993992045,1.01865971,660.74,660.32,0.30288345]
[1748993992246,1.01868828,660.73,660.32,0.30288345]
[1748993992443,1.01868828,660.72,660.32,0.30288345]
[1748993992643,1.01868828,660.71,660.32,0.30288345]
[1748993992842,1.01868828,660.7,660.32,0.30288345]
[1748993993043,1.01868828,660.69,660.32,0.30288345]
[1748993993241,1.01868828,660.68,660.32,0.30288345]
[1748993993448,1.01868828,660.67,660.32,0.30288345]
[1748993993648,1.01868828,660.66,660.32,0.30288345]
[1748993993947,1.01887612,660.65,660.32,0.30288345]
[1748993994147,1.01887612,660.64,660.32,0.30288345]
[1748993994345,1.13033443,661.02,660.32,0.30288345]
[1748993994542,1.01886722,661.01,660.32,0.30288345]
[1748993994741,1.01886722,661.0,660.32,0.30288345]
[1748993994945,1.01886722,660.99,660.32,0.30288345]
[1748993995141,1.01886722,660.98,660.32,0.30288345]
[1748993995342,1.01886722,660.97,660.32,0.30288345]
[1748993995547,1.01886722,660.96,660.32,0.30288345]
[1748993995743,1.01886722,660.95,660.32,0.30288345]
[1748993995946,1.01886722,660.94,660.32,0.30288345]
[1748993996146,1.01886722,660.93,660.32,0.30288345]
[1748993996448,1.01888494,660.92,660.32,0.30288345]
[1748993996648,1.01888494,660.91,660.32,0.30288345]
[1748993996951,1.01888494,660.9,660.32,0.30288345]
[1748993997247,1.01888494,660.89,660.32,0.30288345]
[1748993997440,1.01888494,660.88,660.32,0.30288345]
[1748993997646,1.01888494,660.87,660.32,0.30288345]
[1748993997849,1.13042492,661.04,660.32,0.30288345]
[1748993997850,1.01888494,660.86,660.32,0.30288345]
[1748993998044,1.01888494,660.85,660.32,0.30288345]
[1748993998342,1.01888494,660.84,660.32,0.30288345]
[1748993998543,1.01888494,660.83,660.32,0.30288345]
[1748993998745,1.01888494,660.82,660.32,0.30288345]
[1748993998946,1.01888494,660.81,660.32,0.30288345]
[1748993999145,1.01888494,660.8,660.32,0.30288345]
[1748993999345,1.01888494,660.79,660.32,0.30288345]
[1748993999546,1.01888494,660.78,660.32,0.30288345]
[1748993999848,1.01888494,660.77,660.32,0.30288345]
[1748994000043,1.13042492,661.04,660.32,0.30288345]
[1748994000044,1.01888494,660.76,660.32,0.30288345]
[1748994000246,1.50668707,661.25,660.32,0.30288345]
[1748994000449,1.13023132,661.04,660.32,0.30288345]
[1748994000643,1.01896533,661.03,660.32,0.30288345]
[1748994000848,1.01896533,661.02,660.32,0.30288345]
[1748994001049,1.01896533,661.01,660.32,0.30288345]
[1748994001243,1.01896533,661.0,660.32,0.30288345]
[1748994001447,1.01896533,660.99,660.32,0.30288345]
[1748994001650,1.01896533,660.98,660.32,0.30288345]
[1748994001846,1.01896533,660.97,660.32,0.30288345]
[1748994002045,1.01896533,660.96,660.32,0.30288345]
[1748994002245,1.01896533,660.95,660.32,0.30288345]
[1748994002445,1.01896533,660.94,660.32,0.30288345]
[1748994002750,1.01896533,660.93,660.32,0.30288345]
[1748994002951,1.01913764,660.92,660.32,0.30288345]
[1748994003150,1.01913764,660.91,660.32,0.30288345]
[1748994003351,1.01913764,660.9,660.32,0.30288345]
[1748994003652,1.01913764,660.89,660.32,0.30288345]
[1748994003848,1.01913764,660.88,660.32,0.30288345]
[1748994004049,1.01913764,660.87,660.32,0.30288345]
[1748994004250,1.01913764,660.86,660.32,0.30288345]
[1748994004445,1.01913764,660.85,660.32,0.30288345]
[1748994004648,1.01913764,660.84,660.32,0.30288345]
[1748994004847,1.01913764,660.83,660.32,0.30288345]
[1748994005047,1.01913764,660.82,660.32,0.30288345]
[1748994005245,1.13028203,660.96,660.32,0.30288345]
[1748994005246,1.01913764,660.81,660.32,0.30288345]
[1748994005452,1.01913764,660.8,660.32,0.30288345]
[1748994005646,1.01913764,660.79,660.32,0.30288345]
[1748994005850,1.01913764,660.78,660.32,0.30288345]
[1748994006047,1.01913764,660.77,660.32,0.30288345]
[1748994006252,1.01913764,660.76,660.32,0.30288345]
[1748994006447,1.01913764,660.75,660.32,0.30288345]
[1748994006754,1.50668707,661.11,660.32,0.30288345]
[1748994006951,1.1301139,660.96,660.32,0.30288345]
[1748994007153,1.01900208,660.95,660.32,0.30288345]
[1748994007451,1.01900208,660.94,660.32,0.30288345]
[1748994007654,1.01900208,660.93,660.32,0.30288345]
[1748994007854,1.01900208,660.92,660.32,0.30288345]
[1748994008053,1.01900208,660.91,660.32,0.30288345]
[1748994008252,1.01900208,660.9,660.32,0.30288345]
[1748994008553,1.01900208,660.89,660.32,0.30288345]
[1748994008749,1.01900208,660.88,660.32,0.30288345]
[1748994008950,1.01900208,660.87,660.32,0.30288345]
[1748994009147,1.01900208,660.86,660.32,0.30288345]
[1748994009352,1.01900208,660.85,660.32,0.30288345]
[1748994009550,3.75295845,661.87,660.32,0.30288345]
[1748994009551,1.01900208,660.84,660.32,0.30288345]
[1748994009753,1.01900208,660.83,660.32,0.30288345]
[1748994009957,1.01900208,660.82,660.32,0.30288345]
[1748994010256,1.01900208,660.81,660.32,0.30288345]
[1748994010456,1.01900208,660.8,660.32,0.30288345]
[1748994010650,1.01900208,660.79,660.32,0.30288345]
[1748994010855,1.01900208,660.78,660.32,0.30288345]
[1748994011057,1.01900208,660.77,660.32,0.30288345]
[1748994011355,1.01900208,660.76,660.32,0.30288345]
[1748994011555,1.01900208,660.75,660.32,0.30288345]
[1748994011756,1.01900208,660.74,660.32,0.30288345]
[1748994011956,1.01900208,660.73,660.32,0.30288345]
[1748994012150,1.01900208,660.72,660.32,0.30288345]
[1748994012356,1.01900208,660.71,660.32,0.30288345]
[1748994012558,1.01900208,660.7,660.32,0.30288345]
[1748994012753,1.01900208,660.69,660.32,0.30288345]
[1748994012956,1.01900208,660.68,660.32,0.30288345]
[1748994013255,1.01900208,660.67,660.32,0.30288345]
[1748994013456,1.01900208,660.66,660.32,0.30288345]
[1748994013656,1.1301139,661.02,660.32,0.30288345]
[1748994013857,1.01866729,661.01,660.32,0.30288345]
[1748994014058,1.01866729,661.0,660.32,0.30288345]
[1748994014258,1.01866729,660.99,660.32,0.30288345]
[1748994014456,1.01866729,660.98,660.32,0.30288345]
[1748994014656,1.01866729,660.97,660.32,0.30288345]
[1748994014864,1.01866729,660.96,660.32,0.30288345]
[1748994015059,1.1301139,661.01,660.32,0.30288345]
[1748994015060,1.01866729,660.95,660.32,0.30288345]
[1748994015256,1.01866729,660.94,660.32,0.30288345]
[1748994015461,3.75295845,662.18,660.32,0.30288345]
[1748994015462,1.01866729,660.93,660.32,0.30288345]
[1748994015759,1.01866729,660.92,660.32,0.30288345]
[1748994015962,1.01866729,660.91,660.32,0.30288345]
[1748994016157,1.01866729,660.9,660.32,0.30288345]
[1748994016359,1.01866729,660.89,660.32,0.30288345]
[1748994016664,1.01866729,660.88,660.32,0.30288345]
[1748994016861,1.01866729,660.87,660.32,0.30288345]
[1748994017056,1.01866729,660.86,660.32,0.30288345]
[1748994017261,1.01866729,660.85,660.32,0.30288345]
[1748994017459,1.01866729,660.84,660.32,0.30288345]
[1748994017660,1.01866729,660.83,660.32,0.30288345]
[1748994017861,1.01866729,660.82,660.32,0.30288345]
[1748994018061,1.01866729,660.81,660.32,0.30288345]
[1748994018361,1.01866729,660.8,660.32,0.30288345]
[1748994018557,1.50668707,661.3,660.32,0.30288345]
[1748994018860,1.13027293,661.08,660.32,0.30288345]
[1748994019062,1.01835221,661.07,660.32,0.30288345]
[1748994019262,1.01835221,661.06,660.32,0.30288345]
[1748994019462,1.01835221,661.05,660.32,0.30288345]
[1748994019659,1.01835221,661.04,660.32,0.30288345]
[1748994019966,1.01835221,661.03,660.32,0.30288345]
[1748994020166,1.01835221,661.02,660.32,0.30288345]
[1748994020365,1.01835221,661.01,660.32,0.30288345]
[1748994020561,1.01835221,661.0,660.32,0.30288345]
[1748994020759,1.01835221,660.99,660.32,0.30288345]
[1748994020961,1.01835221,660.98,660.32,0.30288345]
[1748994021265,1.13027293,661.07,660.32,0.30288345]
[1748994021266,1.01835221,660.97,660.32,0.30288345]
[1748994021460,1.01835221,660.96,660.32,0.30288345]
[1748994021666,1.01835221,660.95,660.32,0.30288345]
[1748994021868,1.01835221,660.94,660.32,0.30288345]
[1748994022068,1.01835221,660.93,660.32,0.30288345]
[1748994022268,1.01835221,660.92,660.32,0.30288345]
[1748994022462,1.01835221,660.91,660.32,0.30288345]
[1748994022666,1.01846398,660.9,660.32,0.30288345]
[1748994022864,1.01846398,660.89,660.32,0.30288345]
[1748994023068,1.13035518,661.07,660.32,0.30288345]
[1748994023069,1.01846398,660.88,660.32,0.30288345]
[1748994023269,1.01846398,660.87,660.32,0.30288345]
[1748994023568,1.01846398,660.86,660.32,0.30288345]
[1748994023769,1.01846398,660.85,660.32,0.30288345]
[1748994024069,1.01846398,660.84,660.32,0.30288345]
[1748994024364,1.01846398,660.83,660.32,0.30288345]
[1748994024569,1.01846398,660.82,660.32,0.30288345]
[1748994024869,1.01846398,660.81,660.32,0.30288345]
[1748994025067,1.01846398,660.8,660.32,0.30288345]
[1748994025266,1.01846398,660.79,660.32,0.30288345]
[1748994025465,1.01846398,660.78,660.32,0.78438078]
[1748994025663,1.01846398,660.77,660.32,0.78438078]
[1748994025867,1.01846398,660.76,660.32,0.78438078]
[1748994026071,1.01846398,660.75,660.35,0.48149733]
[1748994026375,1.01846398,660.74,660.36,0.3028651]
[1748994026569,1.50668707,661.14,660.36,0.78436243]
[1748994026871,1.13047677,660.99,660.36,0.78436243]
[1748994027069,1.01859152,660.98,660.36,0.78436243]
[1748994027269,1.01859152,660.97,660.36,0.78436243]
[1748994027468,1.01859152,660.96,660.36,0.78436243]
[1748994027662,1.01859152,660.95,660.37,0.48149733]
[1748994027864,1.01859152,660.94,660.38,0.30285593]
[1748994028068,1.01859152,660.93,660.38,0.30285593]
[1748994028268,1.01859152,660.92,660.38,0.30285593]
[1748994028469,1.01859152,660.91,660.38,0.30285593]
[1748994028671,1.01859152,660.9,660.38,0.30285593]
[1748994028876,1.01859152,660.89,660.38,0.30285593]
[1748994029067,1.01859152,660.88,660.42,0.48149733]
[1748994029270,1.01859152,660.87,660.43,0.302833]
[1748994029574,1.01859152,660.86,660.43,0.302833]
[1748994029775,1.01859152,660.85,660.53,0.48149733]
[1748994029975,1.01859152,660.84,660.54,0.7842799]
[1748994030272,1.01859152,660.83,660.55,0.30277798]
[1748994030472,1.01859152,660.82,660.55,0.30277798]
[1748994030673,1.01875611,660.81,660.55,0.30277798]
[1748994030868,1.01875611,660.8,660.55,0.30277798]
[1748994031072,1.01875611,660.79,660.55,0.30277798]
[1748994031272,1.01875611,660.78,660.55,0.30277798]
[1748994031573,1.01875611,660.77,660.55,0.30277798]
[1748994031774,1.01875611,660.76,660.55,0.30277798]
[1748994031969,1.13055845,660.96,660.55,0.30277798]
[1748994031970,1.01875611,660.75,660.55,0.30277798]
[1748994032275,1.01875611,660.74,660.55,0.30277798]
[1748994032468,1.13055845,660.96,660.55,0.30277798]
[1748994032672,1.01872983,660.95,660.55,0.30277798]
[1748994032871,1.01872983,660.94,660.55,0.30277798]
[1748994033069,1.01872983,660.93,660.55,0.30277798]
[1748994033272,1.01872983,660.92,660.55,0.30277798]
[1748994033574,1.01872983,660.91,660.55,0.30277798]
[1748994033774,1.01872983,660.9,660.55,0.30277798]
[1748994033975,1.13055845,660.96,660.55,0.30277798]
[1748994033976,1.01872983,660.89,660.55,0.30277798]
[1748994034176,1.01872983,660.88,660.55,0.30277798]
[1748994034383,1.01872983,660.87,660.55,0.30277798]
[1748994034578,1.01860651,660.86,660.55,0.30277798]
[1748994034774,1.01860651,660.85,660.55,0.30277798]
[1748994034978,1.01860651,660.84,660.55,0.30277798]
[1748994035179,1.01860651,660.83,660.55,0.30277798]
[1748994035480,1.01860651,660.82,660.55,0.30277798]
[1748994035778,1.01860651,660.81,660.55,0.30277798]
[1748994036080,1.01860651,660.8,660.55,0.30277798]
[1748994036276,1.01860651,660.79,660.55,0.30277798]
[1748994036476,1.01860651,660.78,660.55,0.30277798]
[1748994036778,1.01860651,660.77,660.55,0.30277798]
[1748994036980,1.01860651,660.76,660.55,0.30277798]
[1748994037180,1.01860651,660.75,660.55,0.30277798]
[1748994037380,1.01860651,660.74,660.55,0.30277798]
[1748994037585,1.01845388,660.73,660.55,0.30277798]
[1748994037780,1.13057242,660.96,660.55,0.30277798]
[1748994038084,1.01845612,660.95,660.55,0.30277798]
[1748994038286,1.01845612,660.94,660.55,0.30277798]
[1748994038584,1.01833827,660.93,660.55,0.30277798]
[1748994038783,1.01833827,660.92,660.55,0.30277798]
[1748994038985,1.01833827,660.91,660.55,0.30277798]
[1748994039286,1.01833827,660.9,660.55,0.30277798]
[1748994039486,1.01833827,660.89,660.64,0.48149733]
[1748994039780,1.01833827,660.88,660.65,0.30273215]
[1748994039985,1.01833827,660.87,660.65,0.30273215]
[1748994040186,1.01833827,660.86,660.65,0.30273215]
[1748994040387,1.01833827,660.85,660.65,0.30273215]
[1748994040686,1.01833827,660.84,660.65,0.30273215]
[1748994040887,1.01833827,660.83,660.65,0.30273215]
[1748994041087,1.01833827,660.82,660.65,0.30273215]
[1748994041387,1.01833827,660.81,660.65,0.30273215]
[1748994041588,1.01833827,660.8,660.65,0.30273215]
[1748994041789,1.01833827,660.79,660.65,0.30273215]
[1748994042086,1.01833827,660.78,660.65,0.30273215]
[1748994042283,1.01833827,660.77,660.65,0.30273215]
[1748994042485,1.01833827,660.76,660.65,0.30273215]
[1748994042682,1.01833827,660.75,660.65,0.30273215]
[1748994042886,1.01833827,660.74,660.65,0.30273215]
[1748994043083,1.13065728,660.93,660.65,0.30273215]
[1748994043283,1.01830157,660.92,660.65,0.30273215]
[1748994043488,1.01830157,660.91,660.65,0.30273215]
[1748994043685,1.01830157,660.9,660.65,0.30273215]
[1748994043884,1.01830157,660.89,660.65,0.30273215]
[1748994044084,1.01830157,660.88,660.65,0.30273215]
[1748994044290,1.01830157,660.87,660.65,0.30273215]
[1748994044590,1.01830157,660.86,660.65,0.30273215]
[1748994044890,1.01830157,660.85,660.65,0.30273215]
[1748994045192,1.13065728,660.93,660.65,0.30273215]
[1748994045193,1.01830157,660.84,660.65,0.30273215]
[1748994045390,1.01830157,660.83,660.65,0.30273215]
[1748994045689,1.01830157,660.82,660.65,0.30273215]
[1748994045890,1.01830157,660.81,660.65,0.30273215]
[1748994046085,1.01830157,660.8,660.65,0.30273215]
[1748994046288,1.01830157,660.79,660.65,0.30273215]
[1748994046489,1.01850504,660.78,660.65,0.30273215]
[1748994046689,1.01850504,660.77,660.65,0.30273215]
[1748994046990,1.01850504,660.76,660.65,0.30273215]
[1748994047189,1.01850504,660.75,660.65,0.30273215]
[1748994047385,1.13102334,660.93,660.65,0.30273215]
[1748994047386,1.01850504,660.74,660.65,0.30273215]
[1748994047589,1.01850504,660.73,660.65,0.30273215]
[1748994047787,1.01850504,660.72,660.65,0.30273215]
[1748994047992,1.13102334,660.93,660.65,0.30273215]
[1748994048193,1.01860821,660.92,660.65,0.30273215]
[1748994048492,1.01860821,660.91,660.65,0.30273215]
[1748994048693,1.01860821,660.9,660.65,0.30273215]
[1748994048894,1.01860821,660.89,660.65,0.30273215]
[1748994049093,1.01860821,660.88,660.65,0.30273215]
[1748994049394,1.01860821,660.87,660.65,0.30273215]
[1748994049595,1.01860821,660.86,660.65,0.30273215]
[1748994049789,1.01860821,660.85,660.65,0.30273215]
[1748994049995,1.01860821,660.84,660.65,0.30273215]
[1748994050195,1.50668707,661.1,660.65,0.30273215]
[1748994050396,1.13118689,660.98,660.65,0.30273215]
[1748994050596,1.01871231,660.97,660.65,0.78422948]
[1748994050895,1.13118689,660.98,660.65,0.30273215]
[1748994050896,1.01871231,660.96,660.65,0.30273215]
[1748994051094,1.01871231,660.95,660.65,0.30273215]
[1748994051294,1.01871231,660.94,660.65,0.30273215]
[1748994051490,1.01871231,660.93,660.65,0.30273215]
[1748994051690,1.01871231,660.92,660.65,0.30273215]
[1748994051892,1.13118689,660.98,660.65,0.30273215]
[1748994051893,1.01871231,660.91,660.65,0.30273215]
[1748994052092,1.01871231,660.9,660.65,0.30273215]
[1748994052290,1.01875391,660.89,660.65,0.30273215]
[1748994052488,1.01875391,660.88,660.65,0.30273215]
[1748994052693,1.01875391,660.87,660.65,0.30273215]
[1748994052893,1.01875391,660.86,660.65,0.30273215]
[1748994053088,1.01875391,660.85,660.65,0.30273215]
[1748994053293,1.01875391,660.84,660.65,0.30273215]
[1748994053490,1.01875391,660.83,660.65,0.30273215]
[1748994053694,1.01875391,660.82,660.65,0.30273215]
[1748994053894,1.01875391,660.81,660.65,0.30273215]
[1748994054097,1.01875391,660.8,660.68,0.48149733]
[1748994054294,1.01953217,660.79,660.69,0.30271382]
[1748994054495,1.01953217,660.78,660.69,0.30271382]
[1748994054796,1.13129345,660.97,660.69,0.30271382]
[1748994054996,1.01949491,660.96,660.69,0.30271382]
[1748994055295,1.01949491,660.95,660.69,0.30271382]
[1748994055491,1.01949491,660.94,660.69,0.30271382]
[1748994055691,1.01949491,660.93,660.69,0.30271382]
[1748994055896,1.01949491,660.92,660.69,0.30271382]
[1748994058395,1.01939553,660.81,660.69,0.30271382]
[1748994058594,1.01939553,660.8,660.69,0.30271382]
[1748994058797,1.01939553,660.79,660.69,0.30271382]
[1748994058993,1.01939553,660.78,660.69,0.30271382]
[1748994059195,1.13114173,660.97,660.69,0.30271382]
[1748994059397,1.01927282,660.96,660.69,0.30271382]
[1748994059596,1.01927282,660.95,660.69,0.30271382]
[1748994059796,1.01927282,660.94,660.69,0.30271382]
[1748994060095,1.01927282,660.93,660.69,0.30271382]
[1748994060296,1.01927282,660.92,660.69,0.30271382]
[1748994060496,1.01927282,660.91,660.69,0.30271382]
[1748994060701,1.01927282,660.9,660.69,0.30271382]
[1748994060898,1.01927282,660.89,660.69,0.30271382]
[1748994061095,1.01927282,660.88,660.69,0.30271382]
[1748994061399,1.01924041,660.87,660.69,0.30271382]
[1748994061694,1.01924041,660.86,660.69,0.30271382]
[1748994061894,1.01924041,660.85,660.69,0.30271382]
[1748994062102,1.01924041,660.84,660.69,0.30271382]
[1748994062400,1.01924041,660.83,660.69,0.30271382]
[1748994062599,1.01924041,660.82,660.69,0.30271382]
[1748994062800,1.01924041,660.81,660.69,0.30271382]
[1748994062994,1.01924041,660.8,660.69,0.30271382]
[1748994063194,1.13109202,660.99,660.69,0.30271382]
[1748994063494,1.01911348,660.98,660.69,0.30271382]
[1748994063697,1.13109202,660.99,660.69,0.30271382]
[1748994063698,1.01911348,660.97,660.69,0.30271382]
[1748994063899,1.01911348,660.96,660.69,0.30271382]
[1748994064095,1.01911348,660.95,660.69,0.30271382]
[1748994064301,1.01911348,660.94,660.69,0.30271382]
[1748994064497,1.01911348,660.93,660.69,0.30271382]
[1748994064802,1.01901742,660.92,660.69,0.30271382]
[1748994065098,1.01901742,660.91,660.69,0.30271382]
[1748994065295,1.01901742,660.9,660.69,0.30271382]
[1748994065500,1.01901742,660.89,660.69,0.30271382]
[1748994065697,1.01901742,660.88,660.69,0.30271382]
[1748994065902,1.01901131,660.87,660.69,0.30271382]
[1748994066199,1.01901131,660.86,660.69,0.30271382]
[1748994066402,1.01901131,660.85,660.69,0.30271382]
[1748994066601,1.01901131,660.84,660.69,0.30271382]
[1748994066800,1.01901131,660.83,660.69,0.30271382]
[1748994067002,1.01901131,660.82,660.69,0.30271382]
[1748994067305,1.01901131,660.81,660.69,0.30271382]
[1748994067504,1.01901131,660.8,660.69,0.30271382]
[1748994067803,1.13093053,660.99,660.69,0.30271382]
[1748994068004,1.01909023,660.98,660.69,0.30271382]
[1748994068204,1.01909023,660.97,660.69,0.30271382]
[1748994068504,1.01909023,660.96,660.69,0.30271382]
[1748994068704,1.01909023,660.95,660.69,0.30271382]
[1748994069004,1.01914242,660.94,660.69,0.30271382]
[1748994069203,1.01914242,660.93,660.69,0.30271382]
[1748994069403,1.01914242,660.92,660.69,0.30271382]
[1748994069599,1.01914242,660.91,660.69,0.30271382]
[1748994069903,1.01914242,660.9,660.69,0.30271382]
[1748994070103,1.01914242,660.89,660.69,0.30271382]
[1748994070305,1.01914242,660.88,660.69,0.30271382]
[1748994070604,1.01914242,660.87,660.69,0.30271382]
[1748994070804,1.01914242,660.86,660.69,0.30271382]
[1748994071004,1.01914242,660.85,660.69,0.30271382]
[1748994071202,1.01914242,660.84,660.69,0.30271382]
[1748994071403,1.01914242,660.83,660.69,0.30271382]
[1748994071603,1.13091995,660.99,660.69,0.30271382]
[1748994071604,1.01914242,660.82,660.69,0.30271382]
[1748994071801,1.01914242,660.81,660.69,0.30271382]
[1748994072005,1.01914242,660.8,660.69,0.30271382]
[1748994072201,1.01914242,660.79,660.69,0.30271382]
[1748994072402,1.13091995,660.98,660.69,0.30271382]
[1748994072706,1.01920992,660.97,660.69,0.30271382]
[1748994073005,1.01924636,660.96,660.69,0.30271382]
[1748994073203,1.01924636,660.95,660.69,0.30271382]
[1748994073400,1.01924636,660.94,660.69,0.30271382]
[1748994073700,1.01924636,660.93,660.69,0.30271382]
[1748994073905,1.01924636,660.92,660.69,0.30271382]
[1748994074205,1.01924636,660.91,660.69,0.30271382]
[1748994074401,1.01924636,660.9,660.69,0.30271382]
[1748994074601,1.01924636,660.89,660.69,0.30271382]
[1748994074904,1.01924636,660.88,660.69,0.30271382]
[1748994075105,1.01924636,660.87,660.69,0.30271382]
[1748994075306,1.01924636,660.86,660.69,0.30271382]
[1748994075505,1.01924636,660.85,660.69,0.30271382]
[1748994075701,1.01924636,660.84,660.69,0.30271382]
[1748994076002,1.01924636,660.83,660.69,0.30271382]
[1748994076205,1.01924636,660.82,660.69,0.30271382]
[1748994076406,1.01924636,660.81,660.69,0.30271382]
[1748994076600,1.01924636,660.8,660.69,0.30271382]
[1748994076800,1.50824085,661.09,660.69,0.30271382]
[1748994077001,1.13112048,660.98,660.69,0.30271382]
[1748994077204,1.01937722,660.97,660.69,0.30271382]
[1748994077405,1.01937722,660.96,660.69,0.30271382]
[1748994077707,1.01937722,660.95,660.69,0.30271382]
[1748994077905,1.01937722,660.94,660.69,0.78421115]
[1748994078104,1.01937722,660.93,660.69,0.30271382]
[1748994078309,1.01937722,660.92,660.69,0.30271382]
[1748994078505,1.01937722,660.91,660.69,0.30271382]
[1748994078705,1.01937722,660.9,660.69,0.30271382]
[1748994078911,1.01937722,660.89,660.69,0.30271382]
[1748994079107,1.01937722,660.88,660.69,0.30271382]
[1748994079305,1.01937722,660.87,660.69,0.30271382]
[1748994079603,1.01937722,660.86,660.69,0.30271382]
[1748994079804,1.01937722,660.85,660.69,0.30271382]
[1748994080010,1.01937722,660.84,660.69,0.30271382]
[1748994080206,1.01937722,660.83,660.69,0.30271382]
[1748994080510,1.01937722,660.82,660.69,0.30271382]
[1748994080715,1.02101561,660.81,660.69,0.30271382]
[1748994080913,1.02101561,660.8,660.69,0.30271382]
[1748994081110,1.02101561,660.79,660.69,0.30271382]
[1748994081309,1.02101561,660.78,660.69,0.30271382]
[1748994081510,1.13115187,660.98,660.69,0.30271382]
[1748994081511,1.02101561,660.77,660.69,0.30271382]
[1748994081715,1.13115187,660.98,660.69,0.30271382]
[1748994082014,1.02101676,660.97,660.69,0.30271382]
[1748994082214,1.02101676,660.96,660.69,0.30271382]
[1748994082414,1.02101676,660.95,660.69,0.30271382]
[1748994082614,1.02101676,660.94,660.69,0.30271382]
[1748994082812,1.02101676,660.93,660.69,0.30271382]
[1748994083008,1.02101676,660.92,660.69,0.30271382]
[1748994083212,1.02101676,660.91,660.69,0.78421115]
[1748994083411,1.02101676,660.9,660.69,0.78421115]
[1748994083614,1.02101676,660.89,660.69,0.78421115]
[1748994083813,1.02101676,660.88,660.69,0.78421115]
[1748994084012,1.02101676,660.87,660.69,0.78421115]
[1748994084213,1.02101676,660.86,660.69,0.78421115]
[1748994084415,1.02101676,660.85,660.69,0.78421115]
[1748994084615,1.02019806,660.84,660.69,0.78421115]
[1748994084811,1.02019806,660.83,660.69,0.78421115]
[1748994085018,1.02019806,660.82,660.69,0.78421115]
[1748994085216,1.02019806,660.81,660.69,0.78421115]
[1748994085416,1.02019806,660.8,660.69,0.78421115]
[1748994085717,1.02019806,660.79,660.69,0.78421115]
[1748994085916,1.02019806,660.78,660.71,0.48149733]
[1748994086110,1.02019806,660.77,660.71,0.48149733]
[1748994086314,1.13118868,660.97,660.71,0.48149733]
[1748994086609,1.02022552,660.96,660.71,0.48149733]
[1748994086811,1.02022552,660.95,660.71,0.48149733]
[1748994087010,1.02022552,660.94,660.71,0.48149733]
[1748994087214,1.02022552,660.93,660.71,0.48149733]
[1748994087517,1.02022552,660.92,660.69,0.30271382]
[1748994087717,1.02022552,660.91,660.69,0.30271382]
[1748994087916,1.02022552,660.9,660.69,0.30271382]
[1748994088112,1.02022552,660.89,660.69,0.30271382]